bitfinex/quotes_SOLUSD_20250830
["timestamp","ask_amount","ask_price","bid_price","bid_amount"]
[1756581845518,26.0,201.12,201.09,0.67]
[1756581845720,4.67308218,201.1,201.06,0.67]
[1756581845926,4.67308218,201.08,201.04,0.67]
[1756581846125,4.67308218,201.08,201.05,0.67]
[1756581846303,4.67308218,201.08,201.06,0.67]
[1756581846501,4.67308218,201.09,201.06,0.67]
[1756581846917,4.67308218,201.1,201.07,0.67]
[1756581847118,4.67308218,201.1,201.04,4.67308218]
[1756581847318,72.29215803,201.12,201.05,0.67]
[1756581847629,30.67308218,201.09,201.05,0.67]
[1756581848137,26.0,201.09,201.05,0.67]
[1756581850128,26.0,201.09,201.05,5.34308218]
[1756581850427,26.0,201.05,201.03,0.03]
[1756581850807,30.67308218,201.05,201.03,0.03]
[1756581851008,26.0,201.05,201.03,0.7]
[1756581851814,26.0,201.05,201.03,0.03]
[1756581851815,26.0,201.04,201.03,0.03]
[1756581852711,26.0,201.04,201.03,0.7]
[1756581852912,26.0,201.05,201.03,0.7]
[1756581853421,30.67308218,201.05,201.03,0.7]
[1756581853829,30.67308218,201.05,201.03,0.03]
[1756581854437,26.0,201.05,201.03,0.03]
[1756581854736,30.67308218,201.05,201.03,0.03]
[1756581854936,26.0,201.05,201.03,0.03]
[1756581855441,0.66,201.11,201.04,4.67308218]
[1756581855738,26.0,201.08,201.05,5.34308218]
[1756581855940,26.0,201.08,201.06,0.67]
[1756581856145,40.46,201.12,201.06,0.67]
[1756581856146,45.13308218,201.12,201.07,0.67]
[1756581856346,45.13308218,201.12,201.06,4.67308218]
[1756581856347,26.0,201.09,201.08,0.67]
[1756581856643,26.0,201.09,201.06,5.34308218]
[1756581856947,26.0,201.09,201.07,0.67]
[1756581857146,26.0,201.09,201.08,0.67]
[1756581857625,26.0,201.09,201.03,0.03]
[1756581857825,4.67308218,201.04,201.03,0.03]
[1756581858038,4.67308218,201.05,201.03,0.03]
[1756581858237,26.66,201.06,201.03,0.03]
[1756581858424,5.33308218,201.05,201.03,0.03]
[1756581858618,26.0,201.04,201.03,0.03]
[1756581858824,26.0,201.04,201.03,0.7]
[1756581859042,40.4,201.08,201.03,0.7]
[1756581859043,4.67308218,201.08,201.03,0.7]
[1756581859248,0.66,201.1,201.04,0.67]
[1756581859425,5.63193565,201.13,201.07,4.67308218]
[1756581859730,10.30501783,201.13,201.07,5.34308218]
[1756581859932,26.0,201.1,201.07,5.34308218]
[1756581860249,26.0,201.1,201.07,0.67]
[1756581860454,4.67308218,201.11,201.07,0.67]
[1756581860754,26.0,201.1,201.07,0.67]
[1756581861119,30.67308218,201.1,201.07,0.67]
[1756581862528,26.0,201.1,201.05,9.64691248]
[1756581862738,26.0,201.1,201.06,0.67]
[1756581862938,26.0,201.1,201.07,0.67]
[1756581864321,26.0,201.1,201.08,0.67]
[1756581865523,26.0,201.1,201.05,9.64691248]
[1756581865831,30.67308218,201.1,201.06,0.67]
[1756581866029,30.67308218,201.1,201.07,0.67]
[1756581866235,9.64629229,201.08,201.04,0.67]
[1756581866435,4.67308218,201.07,201.04,0.67]
[1756581866962,4.67308218,201.06,201.04,0.67]
[1756581867247,4.97321011,201.08,201.04,0.67]
[1756581867454,4.67308218,201.07,201.04,0.67]
[1756581870347,4.67308218,201.07,201.03,0.03]
[1756581870556,4.67308218,201.08,201.04,0.67]
[1756581871771,4.97257978,201.11,201.04,0.67]
[1756581872076,26.0,201.11,201.06,4.67308218]
[1756581872239,4.67308218,201.13,201.08,4.67308218]
[1756581872435,26.0,201.12,201.09,0.69]
[1756581872638,30.67308218,201.12,201.09,0.69]
[1756581874871,26.0,201.12,201.1,0.69]
[1756581875044,0.66,201.18,201.11,4.67308218]
[1756581875244,4.67308218,201.17,201.12,4.67308218]
[1756581875462,26.0,201.16,201.12,0.69]
[1756581875840,30.67308218,201.16,201.12,0.69]
[1756581876044,26.0,201.16,201.12,0.69]
[1756581876258,30.67308218,201.16,201.12,0.69]
[1756581877265,26.0,201.16,201.12,0.69]
[1756581877444,26.0,201.16,201.13,0.69]
[1756581878371,26.0,201.16,201.14,0.69]
[1756581878538,4.67308218,201.18,201.13,4.67308218]
[1756581878745,4.67308218,201.18,201.14,0.69]
[1756581879144,26.0,201.17,201.15,0.69]
[1756581880756,9.13951427,201.22,201.16,0.69]
[1756581880955,0.66,201.22,201.16,0.69]
[1756581881164,4.67308218,201.2,201.16,0.69]
[1756581881358,4.67308218,201.2,201.17,0.69]
[1756581881560,4.67308218,201.21,201.17,0.69]
[1756581881973,30.67308218,201.2,201.17,0.69]
[1756581882269,0.06,201.23,201.18,4.67308218]
[1756581882470,0.06,201.23,201.18,5.36308218]
[1756581882641,0.06,201.23,201.19,4.67308218]
[1756581882845,0.06,201.23,201.19,5.36308218]
[1756581883255,0.06,201.23,201.2,0.69]
[1756581883457,0.06,201.23,201.21,4.67308218]
[1756581883668,0.06,201.23,201.22,0.69]
[1756581883855,4.73308218,201.23,201.19,39.94]
[1756581884054,4.73308218,201.23,201.2,0.69]
[1756581884251,4.67308218,201.21,201.16,40.63]
[1756581884465,4.67308218,201.2,201.16,40.63]
[1756581884674,4.67308218,201.2,201.16,0.69]
[1756581885569,4.67308218,201.21,201.17,0.69]
[1756581886453,0.66,201.22,201.17,0.69]
[1756581886454,26.0,201.22,201.18,0.69]
[1756581886654,26.0,201.22,201.18,4.67308218]
[1756581886853,26.0,201.22,201.19,0.69]
[1756581887062,0.06,201.23,201.2,0.69]
[1756581887256,26.0,201.22,201.2,5.36308218]
[1756581887658,0.06,201.23,201.21,5.36308218]
[1756581888061,0.06,201.23,201.22,0.69]
[1756581888762,0.06,201.23,201.2,39.88]
[1756581888952,0.06,201.23,201.21,4.67308218]
[1756581889359,0.06,201.23,201.21,5.36308218]
[1756581889555,0.06,201.23,201.21,0.69]
[1756581890880,0.06,201.23,201.2,4.9701509]
[1756581891073,0.06,201.23,201.21,0.69]
[1756581891556,0.06,201.23,201.19,13.59559401]
[1756581891873,0.06,201.23,201.2,0.69]
[1756581892282,0.06,201.23,201.21,0.69]
[1756581896068,0.06,201.23,201.2,44.51308218]
[1756581896268,0.06,201.23,201.21,0.69]
[1756581896480,0.06,201.23,201.2,44.51308218]
[1756581896782,0.06,201.23,201.2,45.20308218]
[1756581896994,0.06,201.23,201.2,40.53]
[1756581897585,0.06,201.23,201.21,0.69]
[1756581897965,0.06,201.23,201.2,39.84]
[1756581898170,0.06,201.23,201.22,0.69]
[1756581899386,0.06,201.23,201.2,39.84]
[1756581899881,0.06,201.23,201.2,39.78]
[1756581900185,0.06,201.23,201.2,40.47]
[1756581900791,0.06,201.23,201.21,0.69]
[1756581900997,0.06,201.23,201.21,10.33301288]
[1756581901195,0.06,201.23,201.21,9.64301288]
[1756581901380,0.06,201.23,201.22,0.72]
[1756581902299,0.06,201.23,201.22,5.39308218]
[1756581902879,0.06,201.23,201.22,23.95836111]
[1756581905982,0.06,201.23,201.22,103.45836111]
[1756581906778,0.06,201.23,201.22,143.13836111]
[1756581908076,0.06,201.23,201.22,143.09836111]
[1756581908272,0.06,201.23,201.22,98.78527893]
[1756581908478,0.06,201.23,201.22,145.07024411]
[1756581909699,0.06,201.23,201.22,95.80747701]
[1756581909906,0.06,201.23,201.22,79.5]
[1756581910087,0.06,201.23,201.2,13.59559401]
[1756581910296,0.06,201.23,201.21,0.72]
[1756581910612,0.72,201.23,201.22,39.58]
[1756581910780,4.73308218,201.23,201.17,13.62559401]
[1756581911113,4.67308218,201.21,201.18,39.58]
[1756581911475,4.67308218,201.2,201.18,39.58]
[1756581911791,4.67308218,201.19,201.17,0.03]
[1756581911981,4.67308218,201.18,201.17,0.03]
[1756581912188,4.67308218,201.18,201.17,39.59]
[1756581916128,4.67308218,201.18,201.17,40.31]
[1756581916329,4.67308218,201.2,201.17,40.31]
[1756581916518,4.67308218,201.2,201.18,0.72]
[1756581916693,30.67308218,201.2,201.19,39.5]
[1756581917431,4.67308218,201.2,201.19,39.5]
[1756581919930,0.06,201.23,201.2,13.59559401]
[1756581920098,0.06,201.23,201.21,39.44]
[1756581920436,0.06,201.23,201.21,40.16]
[1756581920603,0.06,201.23,201.22,0.72]
[1756581920803,0.06,201.23,201.22,14.31559401]
[1756581926318,0.06,201.23,201.22,23.95836111]
[1756581926496,0.06,201.26,201.23,13.59559401]
[1756581926696,0.06,201.26,201.25,18.26867619]
[1756581927100,0.06,201.26,201.25,18.98867619]
[1756581927404,0.06,201.26,201.25,23.66175819]
[1756581928020,0.06,201.26,201.25,63.06175819]
[1756581928222,0.06,201.26,201.25,63.04175819]
[1756581928522,0.06,201.26,201.25,58.36867601]
[1756581929023,0.06,201.26,201.25,18.98867601]
[1756581929210,0.06,201.26,201.25,58.34867601]
[1756581931125,0.06,201.26,201.25,18.98867601]
[1756581931330,0.06,201.26,201.25,58.30867601]
[1756581932615,0.06,201.26,201.25,137.80867601]
[1756581933927,0.06,201.26,201.25,98.48867601]
[1756581934307,0.06,201.26,201.25,137.76867601]
[1756581935232,0.06,201.26,201.25,147.41070228]
[1756581938366,0.06,201.26,201.25,281.91070228]
[1756581941334,0.06,201.26,201.25,281.83070228]
[1756581941529,0.06,201.26,201.25,147.33070228]
[1756581946154,0.06,201.26,201.25,108.13070228]
[1756581946352,0.06,201.26,201.25,103.4576201]
[1756581946558,0.06,201.26,201.25,147.27070228]
[1756581947860,0.06,201.26,201.25,147.25070228]
[1756581953339,0.06,201.26,201.25,237.9576201]
[1756581953539,0.06,201.26,201.25,271.32867601]
[1756581954447,0.06,201.26,201.25,276.2976201]
[1756581955363,0.71,201.26,201.25,18.26867601]
[1756581955571,0.71,201.26,201.25,57.30867601]
[1756581955868,0.71,201.26,201.25,57.28867601]
[1756581956348,0.71,201.26,201.25,18.26867601]
[1756581956550,0.71,201.26,201.25,57.28867601]
[1756581958061,0.06,201.26,201.25,57.28867601]
[1756581959955,0.71,201.26,201.25,57.28867601]
[1756581960651,0.71,201.26,201.25,18.26867601]
[1756581960846,0.71,201.26,201.25,57.24867601]
[1756581962474,0.06,201.26,201.25,57.24867601]
[1756581965973,0.78,201.26,201.25,57.24867601]
[1756581969663,0.06,201.26,201.25,57.24867601]
[1756581970056,4.73308218,201.26,201.25,57.24867601]
[1756581970462,0.06,201.26,201.25,57.24867601]
[1756581970662,4.73308218,201.26,201.25,57.24867601]
[1756581971469,0.06,201.26,201.25,62.2176201]
[1756581971654,0.06,201.26,201.25,147.11070228]
[1756581971970,0.06,201.26,201.25,108.13070228]
[1756581972174,0.06,201.26,201.25,146.99070228]
[1756581974161,0.06,201.26,201.25,142.3176201]
[1756581974484,0.06,201.26,201.25,146.97070228]
[1756581975773,0.06,201.26,201.25,142.2976201]
[1756581975986,0.06,201.26,201.25,141.5576201]
[1756581979993,0.06,201.26,201.25,146.95070228]
[1756581980396,1e-08,201.26,201.25,146.95070228]
[1756581980893,0.06,201.28,201.27,13.59559401]
[1756581981082,0.06,201.28,201.27,62.53397156]
[1756581981392,0.06,201.28,201.27,63.25397156]
[1756581981583,0.06,201.28,201.27,65.24496156]
[1756581983903,0.06,201.28,201.27,60.57187938]
[1756581984110,0.06,201.28,201.27,65.24496156]
[1756581984411,0.06,201.28,201.27,100.55187937]
[1756581984697,0.06,201.28,201.27,52.37559401]
[1756581984698,5.45308218,201.28,201.27,52.37559401]
[1756581985604,4.73308218,201.28,201.27,52.37559401]
[1756581985788,5.45308218,201.28,201.27,52.37559401]
[1756581986600,4.73308218,201.28,201.27,52.37559401]
[1756581988401,4.73308218,201.28,201.27,57.34404435]
[1756581988591,4.73308218,201.28,201.27,58.06404435]
[1756581988990,0.06,201.28,201.27,58.06404435]
[1756581990002,0.06,201.28,201.27,57.34404435]
[1756581990577,0.06,201.28,201.27,58.06404435]
[1756581990800,0.06,201.28,201.27,62.73712653]
[1756581991002,0.06,201.28,201.27,67.47020853]
[1756581991589,0.06,201.28,201.27,28.69020853]
[1756581991812,0.06,201.28,201.27,67.41020853]
[1756581992107,0.06,201.28,201.27,18.32867601]
[1756581992309,4.73308218,201.28,201.27,57.04867601]
[1756581992693,5.40308218,201.28,201.25,79.49999999]
[1756581993012,0.67,201.27,201.26,38.72]
[1756581994090,5.34308218,201.27,201.26,38.72]
[1756582000113,0.06,201.28,201.27,13.59559401]
[1756582000321,4.73308218,201.28,201.27,14.29559401]
[1756582000903,4.73308218,201.28,201.27,13.59559401]
[1756582001099,5.40308218,201.28,201.27,13.59559401]
[1756582001514,4.73308218,201.28,201.27,13.59559401]
[1756582007519,4.73308218,201.28,201.27,38.72]
[1756582008598,4.73308218,201.28,201.26,0.03]
[1756582008823,4.73308218,201.28,201.27,38.72]
[1756582017117,4.73308218,201.28,201.27,39.42]
[1756582017734,4.73308218,201.28,201.27,38.72]
[1756582018825,4.73308218,201.28,201.26,0.03]
[1756582019135,0.06,201.28,201.27,53.01559401]
[1756582019324,0.06,201.28,201.27,57.98335601]
[1756582020921,0.06,201.28,201.27,62.95180635]
[1756582023648,0.06,201.28,201.27,68.12173356]
[1756582023855,0.06,201.29,201.27,68.12173356]
[1756582023856,1e-08,201.29,201.28,13.59559401]
[1756582024035,1e-08,201.29,201.28,18.97867619]
[1756582024442,1e-08,201.29,201.28,100.46936918]
[1756582024842,1e-08,201.29,201.28,95.796287]
[1756582025042,1e-08,201.29,201.28,134.496287]
[1756582025651,1e-08,201.29,201.28,100.76449049]
[1756582025953,4.67308219,201.29,201.28,133.786287]
[1756582026450,4.67308219,201.29,201.28,95.086287]
[1756582026649,4.67308219,201.29,201.28,54.28628701]
[1756582027637,1e-08,201.29,201.28,54.99628701]
[1756582027843,4.67308219,201.29,201.28,54.99628701]
[1756582028343,4.67308219,201.29,201.28,54.28628701]
[1756582030052,4.67308219,201.29,201.28,59.9644905]
[1756582030053,1e-08,201.29,201.28,59.9644905]
[1756582030639,4.67308219,201.29,201.28,59.9644905]
[1756582031241,1e-08,201.29,201.28,59.9644905]
[1756582031962,4.67308219,201.29,201.28,15.58628701]
[1756582032137,4.67308219,201.29,201.28,38.7]
[1756582033556,4.67308219,201.29,201.27,4.673082]
[1756582033751,5.38308218,201.28,201.27,4.673082]
[1756582033954,5.38308218,201.28,201.27,43.373082]
[1756582034145,5.38308218,201.28,201.27,38.7]
[1756582034544,4.67308218,201.28,201.27,38.7]
[1756582037866,1e-08,201.29,201.28,13.59559401]
[1756582038064,1e-08,201.29,201.28,14.30559401]
[1756582038270,1e-08,201.29,201.28,18.97867619]
[1756582038571,1e-08,201.29,201.28,23.71175819]
[1756582039473,1e-08,201.29,201.28,24.20857853]
[1756582039978,1e-08,201.29,201.28,29.17678202]
[1756582045377,0.06,201.31,201.3,13.59559401]
[1756582045556,1e-08,201.31,201.3,141.61852934]
[1756582045764,1e-08,201.31,201.3,141.83175836]
[1756582046079,1e-08,201.31,201.3,143.82245236]
[1756582046573,1e-08,201.31,201.3,148.79016224]
[1756582046881,1e-08,201.33,201.32,39.59559401]
[1756582047052,1e-08,201.33,201.32,83.44539782]
[1756582047453,1e-08,201.33,201.32,84.15539782]
[1756582048186,1e-08,201.33,201.32,89.12261419]
[1756582048475,1e-08,201.33,201.32,91.11291119]
[1756582051390,1e-08,201.33,201.32,170.61291118]
[1756582051574,1e-08,201.33,201.32,170.11618955]
[1756582055487,1e-08,201.33,201.32,170.14618955]
[1756582057199,0.06,201.36,201.33,93.09559399]
[1756582057383,0.06,201.38,201.35,18.26867619]
[1756582057584,0.06,201.38,201.37,44.26867619]
[1756582057883,0.06,201.38,201.37,46.25857719]
[1756582058079,0.06,201.39,201.38,13.59559401]
[1756582058280,0.06,201.39,201.38,58.11524983]
[1756582058585,0.06,201.39,201.38,63.08098624]
[1756582058892,0.06,201.39,201.38,65.07088824]
[1756582059384,1e-08,201.39,201.38,65.07088824]
[1756582059690,1e-08,201.42,201.38,161.65831146]
[1756582059868,1e-08,201.42,201.41,18.26867619]
[1756582060065,1e-08,201.42,201.41,57.42517586]
[1756582060270,1e-08,201.42,201.41,60.10468086]
[1756582060691,1e-08,201.42,201.41,65.06967763]
[1756582064582,1e-08,201.42,201.41,26.40967763]
[1756582064800,1e-08,201.42,201.41,65.04967763]
[1756582065789,1e-08,201.42,201.41,26.40967763]
[1756582065971,1e-08,201.42,201.41,65.04967763]
[1756582066175,0.87,201.47,201.43,13.59559401]
[1756582066370,0.87,201.47,201.43,131.735594]
[1756582066576,0.87,201.47,201.43,136.40867618]
[1756582066791,0.87,201.47,201.43,131.735594]
[1756582066991,0.87,201.47,201.43,136.40867618]
[1756582067500,0.87,201.47,201.43,142.06317997]
[1756582067700,0.87,201.47,201.43,144.05258697]
[1756582067884,0.87,201.47,201.43,143.36258697]
[1756582068086,0.87,201.47,201.43,144.05258697]
[1756582069904,0.87,201.47,201.43,143.36258697]
[1756582074506,0.87,201.47,201.43,144.05258697]
[1756582075982,0.2,201.47,201.43,144.05258697]
[1756582078183,0.2,201.47,201.45,13.59559401]
[1756582078408,0.2,201.47,201.45,56.88867619]
[1756582078704,0.2,201.47,201.45,57.57867619]
[1756582078900,0.2,201.47,201.45,59.56778519]
[1756582079491,0.2,201.47,201.45,64.53179611]
[1756582081188,0.2,201.47,201.45,20.54871393]
[1756582081189,0.73,201.46,201.45,20.54871393]
[1756582081387,5.40308218,201.46,201.45,59.16871393]
[1756582081611,5.40308218,201.46,201.45,20.54871393]
[1756582081794,5.40308218,201.46,201.45,1.839109]
[1756582082110,5.40308218,201.46,201.45,40.459109]
[1756582082506,5.40308218,201.46,201.45,38.62]
[1756582082810,0.73,201.46,201.45,38.62]
[1756582083023,31.40308218,201.46,201.45,38.62]
[1756582084284,31.40308218,201.46,201.45,57.17960493]
[1756582084285,0.06,201.46,201.45,57.17960493]
[1756582084483,5.30308218,201.46,201.45,57.17960493]
[1756582088706,4.73308218,201.46,201.45,57.17960493]
[1756582089802,4.73308218,201.46,201.45,52.21559401]
[1756582093324,4.73308218,201.46,201.45,57.17960493]
[1756582094936,30.73308218,201.46,201.45,52.21559401]
[1756582102054,26.06,201.46,201.45,57.17960493]
[1756582105955,0.06,201.46,201.45,62.53268711]
[1756582106166,0.06,201.46,201.45,156.95323509]
[1756582106960,0.06,201.46,201.45,118.33323509]
[1756582107329,0.06,201.46,201.45,156.93323509]
[1756582108770,0.06,201.46,201.45,156.96323509]
[1756582111134,0.06,201.46,201.45,118.36323509]
[1756582111334,0.06,201.46,201.45,72.11015293]
[1756582111558,0.06,201.46,201.45,67.14614201]
[1756582111740,0.06,201.46,201.45,72.11015293]
[1756582111940,0.06,201.46,201.45,52.22559401]
[1756582112959,0.06,201.46,201.45,13.62559401]
[1756582113160,0.06,201.46,201.45,52.22559401]
[1756582115364,4.73308218,201.46,201.45,13.62559401]
[1756582115673,31.30308218,201.46,201.45,0.03]
[1756582115842,31.30308218,201.46,201.45,38.63]
[1756582122077,30.73308218,201.46,201.45,38.63]
[1756582122248,31.30308218,201.46,201.45,38.63]
[1756582122869,30.73308218,201.46,201.45,38.63]
[1756582126274,26.06,201.46,201.45,52.88559401]
[1756582126572,26.06,201.46,201.45,57.84960493]
[1756582127272,0.06,201.46,201.45,62.52268711]
[1756582127448,0.06,201.46,201.45,72.77015293]
[1756582127644,0.06,201.46,201.45,77.44323511]
[1756582128044,0.06,201.46,201.45,76.47392105]
[1756582128250,0.06,201.46,201.45,77.44323511]
[1756582128544,0.06,201.46,201.45,81.14719785]
[1756582132284,0.06,201.46,201.45,37.87411567]
[1756582132480,0.06,201.46,201.45,57.82960493]
[1756582132784,0.06,201.46,201.45,64.49219211]
[1756582132956,0.06,201.46,201.45,59.81910993]
[1756582134053,0.06,201.46,201.45,57.16960493]
[1756582135353,0.06,201.46,201.45,57.82960493]
[1756582135880,0.06,201.46,201.45,59.81920993]
[1756582136683,0.06,201.46,201.45,64.49229211]
[1756582137585,0.06,201.49,201.46,13.59559401]
[1756582137761,1e-08,201.51,201.48,22.94175837]
[1756582137958,1e-08,201.51,201.5,22.94175837]
[1756582138394,1e-08,201.51,201.5,23.60175837]
[1756582138767,1e-08,201.51,201.5,43.47989252]
[1756582139069,1e-08,201.51,201.5,34.13372816]
[1756582139264,1e-08,201.51,201.5,77.38681034]
[1756582141060,1e-08,201.51,201.5,72.71372816]
[1756582141283,1e-08,201.51,201.5,82.05989252]
[1756582141472,1e-08,201.51,201.5,77.38681034]
[1756582143286,1e-08,201.51,201.5,156.88681032]
[1756582143482,1e-08,201.51,201.5,161.5598925]
[1756582143865,1e-08,201.51,201.5,156.88681032]
[1756582144283,1e-08,201.51,201.5,161.5598925]
[1756582148774,0.63,201.63,201.53,13.59559401]
[1756582148990,0.63,201.63,201.62,13.59559401]
[1756582149276,0.63,201.63,201.62,52.15559401]
[1756582150275,0.63,201.63,201.62,57.11541942]
[1756582150476,0.63,201.63,201.62,61.7885016]
[1756582151479,0.2,201.65,201.62,61.7885016]
[1756582151795,26.0,201.64,201.63,4.67308218]
[1756582152293,0.83,201.65,201.63,18.26867619]
[1756582152485,0.2,201.65,201.64,56.82867619]
[1756582153677,0.2,201.65,201.64,61.78800965]
[1756582154002,0.2,201.65,201.64,156.90669363]
[1756582156181,0.2,201.65,201.64,118.34669363]
[1756582156578,0.2,201.65,201.64,156.90669363]
[1756582159008,0.2,201.65,201.64,156.19669363]
[1756582159185,0.2,201.65,201.64,156.90669363]
[1756582163492,0.2,201.65,201.64,117.63669363]
[1756582163700,0.83,201.65,201.64,117.63669363]
[1756582164013,0.2,201.65,201.64,141.26800963]
[1756582166909,0.2,201.65,201.64,61.76800965]
[1756582167513,0.2,201.65,201.63,81.48782398]
[1756582167514,0.2,201.65,201.63,1.987824]
[1756582167723,26.0,201.61,201.59,9.63363586]
[1756582167895,26.0,201.61,201.6,52.13559401]
[1756582168294,0.63,201.63,201.6,56.80867619]
[1756582169223,0.63,201.63,201.6,52.13559401]
[1756582169826,0.63,201.63,201.6,57.09581813]
[1756582171207,26.0,201.64,201.6,57.09581813]
[1756582171410,26.63,201.64,201.6,57.09581813]
[1756582171605,31.30308218,201.64,201.6,57.09581813]
[1756582171834,26.0,201.63,201.6,57.09581813]
[1756582172006,26.63,201.63,201.6,57.09581813]
[1756582172608,30.67308218,201.64,201.6,57.09581813]
[1756582172912,31.30308218,201.64,201.6,57.09581813]
[1756582174009,31.30308218,201.64,201.6,57.76581813]
[1756582174198,0.2,201.65,201.61,4.67308218]
[1756582174398,4.87308218,201.65,201.62,38.54]
[1756582174607,0.63,201.64,201.62,38.54]
[1756582175225,26.0,201.63,201.62,52.13559401]
[1756582176424,26.0,201.64,201.62,52.13559401]
[1756582177915,26.0,201.63,201.62,52.13559401]
[1756582178758,0.06,201.64,201.62,52.13559401]
[1756582179818,26.06,201.64,201.62,57.76536447]
[1756582180149,26.06,201.64,201.63,0.67]
[1756582180624,0.06,201.64,201.63,0.67]
[1756582180830,0.06,201.64,201.63,39.21]
[1756582181731,0.06,201.64,201.63,38.54]
[1756582184319,26.0,201.61,201.6,13.59559401]
[1756582184541,26.0,201.61,201.6,52.13559401]
[1756582184931,26.0,201.61,201.6,52.80559401]
[1756582185624,0.06,201.64,201.6,57.76591147]
[1756582185829,26.06,201.64,201.62,13.59559401]
[1756582186030,26.06,201.64,201.63,38.54]
[1756582187648,26.06,201.64,201.58,13.59559401]
[1756582187649,31.36308218,201.64,201.58,13.59559401]
[1756582187852,30.67308218,201.6,201.59,52.13559401]
[1756582188354,26.0,201.6,201.59,52.13559401]
[1756582195139,26.0,201.62,201.59,57.76615753]
[1756582195370,30.67308218,201.62,201.6,0.67]
[1756582195666,30.67308218,201.62,201.61,38.54]
[1756582198065,4.67308218,201.62,201.61,38.54]
[1756582199061,30.67308218,201.62,201.61,38.54]
[1756582199943,26.0,201.62,201.61,38.54]
[1756582200750,0.06,201.64,201.62,13.59559401]
[1756582200964,0.06,201.64,201.63,38.54]
[1756582201167,0.06,201.64,201.63,39.21]
[1756582201676,0.06,201.64,201.63,38.54]
[1756582201850,26.06,201.64,201.63,38.54]
[1756582202352,26.06,201.64,201.63,39.2]
[1756582202569,0.06,201.64,201.63,39.2]
[1756582203674,0.06,201.64,201.63,62.42825561]
[1756582203980,0.06,201.64,201.63,156.83693959]
[1756582205750,1e-08,201.64,201.63,156.83693959]
[1756582206363,1e-08,201.64,201.63,118.29693959]
[1756582206751,1e-08,201.64,201.63,156.81693959]
[1756582208456,1e-08,201.64,201.63,77.31693961]
[1756582210776,0.06,201.67,201.64,13.59559401]
[1756582210986,0.06,201.67,201.66,4.67308218]
[1756582211189,0.06,201.67,201.66,18.26867619]
[1756582211488,0.06,201.67,201.66,20.91600719]
[1756582212177,0.06,201.67,201.66,25.8748488]
[1756582212869,0.06,201.67,201.66,64.3948488]
[1756582213972,0.06,201.67,201.66,25.8748488]
[1756582214288,0.06,201.67,201.66,59.06176662]
[1756582214487,0.06,201.67,201.66,64.3948488]
[1756582216783,0.06,201.67,201.66,143.8948488]
[1756582218283,0.06,201.67,201.66,139.22176662]
[1756582218584,0.06,201.67,201.66,143.8948488]
[1756582221382,1e-08,201.67,201.66,143.8948488]
[1756582221557,1e-08,201.69,201.67,13.59559401]
[1756582221766,1e-08,201.69,201.68,66.40010823]
[1756582222074,1e-08,201.69,201.68,67.06010823]
[1756582222280,1e-08,201.69,201.68,69.04704423]
[1756582223473,1e-08,201.7,201.69,13.59559401]
[1756582223771,1e-08,201.7,201.69,23.60175837]
[1756582224163,1e-08,201.7,201.69,105.08869437]
[1756582224485,1e-08,201.72,201.69,105.08869437]
[1756582224693,1e-08,201.72,201.71,18.26867619]
[1756582225070,1e-08,201.72,201.71,33.82847519]
[1756582225264,1e-08,201.72,201.71,29.15539301]
[1756582225497,1e-08,201.72,201.71,77.2860876]
[1756582228791,1e-08,201.72,201.71,38.1260876]
[1756582229011,1e-08,201.72,201.71,76.6260876]
[1756582229188,1e-08,201.72,201.71,156.1260876]